[Event "European Women's Chess Championship (1-48)"]
[Site "Batumi, Georgia"]
[Date "2026.05.25"]
[Round "1.42"]
[White "Hayrapetyan, Nvard"]
[Black "Gvetadze, Sofio"]
[Result "1-0"]
[TimeControl "90min/ 40moves+ 30min+ 30-sec increment from move 1"]
[WhiteTitle "-"]
[BlackTitle "-"]
[WhiteFideId "13316460"]
[BlackFideId "13601440"]
[WhiteElo "2057"]
[BlackElo "2311"]

1. d4 {[%clk 01:30:58]} {[%emt 00:00:02]} Nf6 {[%clk 01:30:51]} {[%emt
00:00:09]} 2. c4 {[%clk 01:31:23]} {[%emt 00:00:05]} b6 {[%clk 01:30:56]}
{[%emt 00:00:26]} 3. Nc3 {[%clk 01:28:43]} {[%emt 00:03:11]} Bb7 {[%clk
01:31:18]} {[%emt 00:00:07]} 4. f3 {[%clk 01:24:02]} {[%emt 00:05:11]} d6
{[%clk 01:28:34]} {[%emt 00:03:14]} 5. e4 {[%clk 01:22:27]} {[%emt 00:02:05]}
Nbd7 {[%clk 01:28:34]} {[%emt 00:00:30]} 6. Nge2 {[%clk 01:16:10]} {[%emt
00:06:46]} c5 {[%clk 01:27:08]} {[%emt 00:01:57]} 7. d5 {[%clk 01:15:29]}
{[%emt 00:01:11]} g6 {[%clk 01:26:20]} {[%emt 00:01:18]} 8. Ng3 {[%clk
01:10:31]} {[%emt 00:05:28]} h5 {[%clk 01:25:08]} {[%emt 00:01:41]} 9. h4
{[%clk 01:09:31]} {[%emt 00:01:31]} Bg7 {[%clk 01:22:59]} {[%emt 00:02:39]} 10.
Be2 {[%clk 01:09:14]} {[%emt 00:00:47]} Ne5 {[%clk 01:21:39]} {[%emt 00:01:49]}
11. O-O {[%clk 01:06:41]} {[%emt 00:03:03]} Bc8 {[%clk 01:19:42]} {[%emt
00:02:27]} 12. Bd2 {[%clk 01:02:45]} {[%emt 00:04:26]} Nh7 {[%clk 01:16:44]}
{[%emt 00:03:29]} 13. Nh1 {[%clk 00:58:08]} {[%emt 00:05:07]} Bf6 {[%clk
01:07:26]} {[%emt 00:09:47]} 14. Qe1 {[%clk 00:51:50]} {[%emt 00:06:48]} Rg8
{[%clk 01:02:35]} {[%emt 00:05:21]} 15. f4 {[%clk 00:48:22]} {[%emt 00:03:59]}
Ng4 {[%clk 00:56:03]} {[%emt 00:07:01]} 16. e5 {[%clk 00:47:32]} {[%emt
00:01:21]} Bg7 {[%clk 00:51:21]} {[%emt 00:05:12]} 17. Bxg4 {[%clk 00:31:05]}
{[%emt 00:16:57]} Bxg4 {[%clk 00:50:03]} {[%emt 00:01:47]} 18. Nf2 {[%clk
00:29:22]} {[%emt 00:02:14]} Bf5 {[%clk 00:49:11]} {[%emt 00:01:22]} 19. a4
{[%clk 00:29:07]} {[%emt 00:00:45]} Kf8 {[%clk 00:40:49]} {[%emt 00:08:52]} 20.
Qe2 {[%clk 00:25:37]} {[%emt 00:04:01]} Rh8 {[%clk 00:33:10]} {[%emt 00:08:08]}
21. Rfe1 {[%clk 00:23:57]} {[%emt 00:02:10]} Kg8 {[%clk 00:31:44]} {[%emt
00:01:56]} 22. a5 {[%emt 00:04:33]} Nf8 {[%clk 00:15:34]} {[%emt 00:16:36]} 23.
axb6 {[%clk 00:18:11]} {[%emt 00:02:17]} Qxb6 {[%clk 00:14:30]} {[%emt
00:01:34]} 24. Nb5 {[%clk 00:18:06]} {[%emt 00:00:35]} a5 {[%clk 00:04:02]}
{[%emt 00:10:58]} 25. Ra3 {[%clk 00:16:43]} {[%emt 00:01:53]} Bd7 {[%clk
00:03:27]} {[%emt 00:01:04]} 26. Rea1 {[%clk 00:15:28]} {[%emt 00:01:45]} Qb8
{[%clk 00:02:35]} {[%emt 00:01:23]} 27. Bc3 {[%clk 00:15:28]} {[%emt 00:00:30]}
Bxb5 {[%clk 00:02:13]} {[%emt 00:00:52]} 28. cxb5 {[%clk 00:15:56]} {[%emt
00:00:01]} Qb7 {[%clk 00:02:18]} {[%emt 00:00:25]} 29. Qd3 {[%clk 00:12:21]}
{[%emt 00:04:06]} dxe5 {[%clk 00:02:25]} {[%emt 00:00:23]} 30. fxe5 {[%clk
00:12:45]} {[%emt 00:00:05]} Rd8 {[%clk 00:02:38]} {[%emt 00:00:18]} 31. Rd1
{[%clk 00:12:44]} {[%emt 00:00:31]} Ne6 {[%clk 00:02:43]} {[%emt 00:00:25]} 32.
Bxa5 {[%clk 00:09:54]} {[%emt 00:03:20]} Rd7 {[%clk 00:02:51]} {[%emt
00:00:21]} 33. Qf3 {[%clk 00:06:24]} {[%emt 00:04:01]} Nd4 {[%clk 00:02:39]}
{[%emt 00:00:42]} 34. Rxd4 {[%clk 00:06:18]} {[%emt 00:00:36]} cxd4 {[%clk
00:03:07]} {[%emt 00:00:01]} 35. e6 {[%clk 00:06:41]} {[%emt 00:00:07]} Rxd5
{[%clk 00:02:27]} {[%emt 00:01:11]} 36. Qxf7+ {[%clk 00:06:59]} {[%emt
00:00:12]} Kh7 {[%clk 00:02:54]} {[%emt 00:00:02]} 37. Rg3 {[%clk 00:07:13]}
{[%emt 00:00:17]} g5 {[%clk 00:02:47]} {[%emt 00:00:37]} 38. Qxh5+ {[%clk
00:07:27]} {[%emt 00:00:15]} Kg8 {[%clk 00:03:13]} {[%emt 00:00:04]} 39. Qf7+
{[%clk 00:07:52]} {[%emt 00:00:05]} Kh7 {[%clk 00:03:34]} {[%emt 00:00:09]} 40.
hxg5 {[%clk 00:08:15]} {[%emt 00:00:08]} 1-0

[Event "European Women's Chess Championship (1-48)"]
[Site "Batumi, Georgia"]
[Date "2026.05.25"]
[Round "1.43"]
[White "Matnadze Bujiashvili, Ann"]
[Black "Avetisyan, Ani"]
[Result "1/2-1/2"]
[TimeControl "90min/ 40moves+ 30min+ 30-sec increment from move 1"]
[WhiteTitle "-"]
[BlackTitle "-"]
[WhiteFideId "13601377"]
[BlackFideId "13319035"]
[WhiteElo "2310"]
[BlackElo "2052"]

1. d4 {[%clk 01:30:56]} {[%emt 00:00:03]} Nf6 {[%clk 01:30:55]} {[%emt
00:00:06]} 2. Nf3 {[%clk 01:31:17]} {[%emt 00:00:08]} d5 {[%clk 01:31:14]}
{[%emt 00:00:11]} 3. c4 {[%clk 01:31:37]} {[%emt 00:00:10]} e6 {[%clk
01:31:36]} {[%emt 00:00:08]} 4. g3 {[%clk 01:31:36]} {[%emt 00:00:31]} Be7
{[%clk 01:31:53]} {[%emt 00:00:12]} 5. Bg2 {[%clk 01:31:59]} {[%emt 00:00:07]}
O-O {[%clk 01:32:12]} {[%emt 00:00:11]} 6. Nc3 {[%clk 01:32:26]} {[%emt
00:00:04]} dxc4 {[%clk 01:32:00]} {[%emt 00:00:42]} 7. Ne5 {[%clk 01:32:52]}
{[%emt 00:00:04]} Qd6 {[%clk 01:31:11]} {[%emt 00:01:19]} 8. Nxc4 {[%clk
01:15:51]} {[%emt 00:17:31]} Qa6 {[%clk 01:30:56]} {[%emt 00:00:43]} 9. Qb3
{[%clk 01:11:44]} {[%emt 00:04:40]} Rd8 {[%clk 01:24:33]} {[%emt 00:06:52]} 10.
O-O {[%clk 00:58:28]} {[%emt 00:13:46]} Nc6 {[%clk 01:15:07]} {[%emt 00:09:57]}
11. Be3 {[%clk 00:50:57]} {[%emt 00:08:00]} Nd5 {[%clk 00:57:50]} {[%emt
00:17:47]} 12. Rac1 {[%clk 00:39:22]} {[%emt 00:12:05]} Nxc3 {[%clk 00:47:33]}
{[%emt 00:10:48]} 13. bxc3 {[%clk 00:36:15]} {[%emt 00:03:37]} Na5 {[%clk
00:43:26]} {[%emt 00:04:37]} 14. Nxa5 {[%clk 00:36:39]} {[%emt 00:00:05]} Qxa5
{[%clk 00:43:53]} {[%emt 00:00:04]} 15. c4 {[%clk 00:36:22]} {[%emt 00:00:47]}
c6 {[%clk 00:41:31]} {[%emt 00:02:51]} 16. c5 {[%clk 00:34:59]} {[%emt
00:01:53]} Bd7 {[%clk 00:35:25]} {[%emt 00:06:37]} 17. Rb1 {[%clk 00:24:31]}
{[%emt 00:10:58]} b5 {[%clk 00:27:16]} {[%emt 00:08:39]} 18. cxb6 {[%clk
00:22:48]} {[%emt 00:02:13]} axb6 {[%clk 00:26:28]} {[%emt 00:01:18]} 19. d5
{[%clk 00:22:45]} {[%emt 00:00:32]} Rdc8 {[%clk 00:24:28]} {[%emt 00:02:30]} 20.
Bxb6 {[%clk 00:17:19]} {[%emt 00:05:55]} Qxa2 {[%clk 00:22:29]} {[%emt
00:02:30]} 21. Qxa2 {[%clk 00:17:32]} {[%emt 00:00:17]} Rxa2 {[%clk 00:22:55]}
{[%emt 00:00:05]} 22. dxc6 {[%clk 00:10:07]} {[%emt 00:07:55]} Bxc6 {[%clk
00:23:10]} {[%emt 00:00:15]} 23. Rfc1 {[%clk 00:10:12]} {[%emt 00:00:25]} Bd7
{[%clk 00:23:08]} {[%emt 00:00:31]} 24. Rxc8+ {[%clk 00:10:08]} {[%emt
00:00:34]} Bxc8 {[%clk 00:23:36]} {[%emt 00:00:03]} 25. Be3 {[%clk 00:08:14]}
{[%emt 00:02:24]} Bd6 {[%clk 00:17:26]} {[%emt 00:06:39]} 26. Rd1 {[%clk
00:05:33]} {[%emt 00:03:10]} Be7 {[%clk 00:16:41]} {[%emt 00:01:16]} 27. Rb1
{[%clk 00:03:45]} {[%emt 00:02:18]} Bd6 {[%clk 00:16:28]} {[%emt 00:00:42]} 28.
Rd1 {[%clk 00:02:55]} {[%emt 00:01:21]} Be7 {[%clk 00:16:43]} {[%emt 00:00:15]}
29. Bf3 {[%clk 00:02:59]} {[%emt 00:00:27]} g5 {[%clk 00:07:31]} {[%emt
00:09:42]} 30. Rc1 {[%clk 00:02:30]} {[%emt 00:00:58]} Ba6 {[%clk 00:07:12]}
{[%emt 00:00:49]} 31. Bd4 {[%clk 00:02:09]} {[%emt 00:00:50]} h6 {[%clk
00:04:40]} {[%emt 00:03:03]} 32. Rc7 {[%clk 00:02:01]} {[%emt 00:00:37]} Kf8
{[%clk 00:04:28]} {[%emt 00:00:43]} 33. Ra7 {[%clk 00:01:16]} {[%emt 00:01:16]}
Bc4 {[%clk 00:02:12]} {[%emt 00:02:45]} 34. Rc7 {[%emt 00:00:08]} Ba6 {[%clk
00:02:36]} 35. Ra7 {[%clk 00:02:12]} {[%emt 00:00:02]} Bc4 {[%clk 00:02:32]}
{[%emt 00:00:33]} 36. Rb7 {[%clk 00:02:37]} {[%emt 00:00:06]} Bd6 {[%clk
00:01:44]} {[%emt 00:01:19]} 37. Rb6 {[%clk 00:02:30]} {[%emt 00:00:36]} Ra6
{[%clk 00:00:45]} {[%emt 00:01:29]} 38. Rb7 {[%clk 00:02:54]} {[%emt 00:00:06]}
e5 {[%clk 00:00:47]} {[%emt 00:00:29]} 39. Bc3 {[%clk 00:03:00]} {[%emt
00:00:24]} Ra3 {[%clk 00:00:39]} {[%emt 00:00:37]} 40. Bb2 {[%clk 00:02:06]}
{[%emt 00:01:23]} Rb3 {[%clk 00:00:59]} {[%emt 00:00:11]} 41. Rxb3 {[%clk
00:01:51]} {[%emt 00:00:45]} Bxb3 {[%clk 00:01:26]} {[%emt 00:00:04]} 42. Be4
{[%clk 00:02:02]} {[%emt 00:00:18]} Bc4 {[%clk 00:01:19]} {[%emt 00:00:37]} 43.
e3 {[%clk 00:02:01]} {[%emt 00:00:31]} Ke7 {[%clk 00:01:15]} {[%emt 00:00:35]}
44. Bf5 {[%clk 00:01:17]} {[%emt 00:01:13]} Be6 {[%clk 00:01:22]} {[%emt
00:00:24]} 45. Bxe6 {[%clk 00:01:25]} {[%emt 00:00:22]} Kxe6 {[%clk 00:01:49]}
{[%emt 00:00:03]} 46. e4 {[%clk 00:01:36]} {[%emt 00:00:18]} g4 {[%clk
00:01:24]} {[%emt 00:00:54]} 47. Kg2 {[%clk 00:01:49]} {[%emt 00:00:18]} h5
{[%clk 00:01:42]} {[%emt 00:00:12]} 48. h3 {[%emt 00:00:39]} f5 {[%clk
00:01:55]} 49. exf5+ {[%clk 00:02:15]} {[%emt 00:00:12]} Kxf5 {[%clk 00:02:21]}
{[%emt 00:00:03]} 50. hxg4+ {[%clk 00:02:34]} {[%emt 00:00:12]} hxg4 {[%clk
00:02:48]} {[%emt 00:00:03]} 51. Bxe5 {[%clk 00:02:29]} {[%emt 00:00:35]} Bxe5
{[%clk 00:03:03]} {[%emt 00:00:15]} 52. f3 {[%clk 00:02:58]} {[%emt 00:00:01]}
1/2-1/2

[Event "European Women's Chess Championship (1-48)"]
[Site "Batumi, Georgia"]
[Date "2026.05.25"]
[Round "1.44"]
[White "Tsiganova, Monika"]
[Black "Hrebenshchykova, Yelyzaveta"]
[Result "1-0"]
[TimeControl "90min/ 40moves+ 30min+ 30-sec increment from move 1"]
[WhiteTitle "-"]
[BlackTitle "-"]
[WhiteFideId "4500199"]
[BlackFideId "14159899"]
[WhiteElo "2039"]
[BlackElo "2309"]

1. d4 {[%clk 01:30:46]} {[%emt 00:00:12]} Nf6 {[%clk 01:30:28]} {[%emt
00:00:33]} 2. c4 {[%clk 01:30:59]} {[%emt 00:00:17]} g6 {[%clk 01:30:51]}
{[%emt 00:00:07]} 3. Nc3 {[%clk 01:31:11]} {[%emt 00:00:18]} Bg7 {[%clk
01:31:16]} {[%emt 00:00:06]} 4. e4 {[%clk 01:31:08]} {[%emt 00:00:32]} d6
{[%clk 01:31:43]} {[%emt 00:00:04]} 5. Nf3 {[%clk 01:31:18]} {[%emt 00:00:18]}
O-O {[%clk 01:31:53]} {[%emt 00:00:20]} 6. Be2 {[%clk 01:31:40]} {[%emt
00:00:09]} e5 {[%clk 01:31:22]} {[%emt 00:01:01]} 7. O-O {[%clk 01:31:39]}
{[%emt 00:00:30]} Na6 {[%clk 01:29:23]} {[%emt 00:02:31]} 8. Be3 {[%clk
01:28:33]} {[%emt 00:03:36]} Qe7 {[%clk 01:29:37]} {[%emt 00:00:16]} 9. d5
{[%clk 01:25:27]} {[%emt 00:03:35]} Nh5 {[%clk 01:20:25]} {[%emt 00:09:42]} 10.
Re1 {[%emt 00:36:36]} Nf4 {[%clk 00:48:05]} 11. Bf1 {[%clk 01:19:50]} {[%emt
00:02:50]} Bg4 {[%clk 00:40:20]} {[%emt 00:08:16]} 12. h3 {[%clk 01:17:09]}
{[%emt 00:03:10]} Bd7 {[%clk 00:35:00]} {[%emt 00:05:51]} 13. Rc1 {[%clk
01:13:40]} {[%emt 00:03:59]} h5 {[%clk 00:33:18]} {[%emt 00:02:13]} 14. a3
{[%clk 01:06:29]} {[%emt 00:07:40]} g5 {[%clk 00:18:54]} {[%emt 00:14:54]} 15.
Nh2 {[%clk 01:04:38]} {[%emt 00:02:20]} g4 {[%clk 00:14:40]} {[%emt 00:04:45]}
16. hxg4 {[%clk 01:00:25]} {[%emt 00:04:42]} hxg4 {[%clk 00:15:08]} {[%emt
00:00:03]} 17. Nxg4 {[%clk 00:45:40]} {[%emt 00:15:15]} Qh4 {[%clk 00:15:35]}
{[%emt 00:00:03]} 18. Nh2 {[%clk 00:41:18]} {[%emt 00:04:52]} f5 {[%clk
00:15:51]} {[%emt 00:00:17]} 19. Nf3 {[%clk 00:36:47]} {[%emt 00:04:57]} Qg4
{[%clk 00:15:12]} {[%emt 00:01:10]} 20. Bxf4 {[%clk 00:32:10]} {[%emt
00:05:07]} Qxf4 {[%clk 00:09:01]} {[%emt 00:06:41]} 21. b4 {[%clk 00:21:20]}
{[%emt 00:11:19]} Bh6 {[%clk 00:08:19]} {[%emt 00:01:13]} 22. Rc2 {[%clk
00:20:37]} {[%emt 00:01:13]} fxe4 {[%clk 00:03:50]} {[%emt 00:04:59]} 23. Rxe4
{[%clk 00:19:58]} {[%emt 00:01:09]} Qf6 {[%clk 00:03:59]} {[%emt 00:00:21]} 24.
Rh4 {[%clk 00:19:31]} {[%emt 00:00:56]} Bf5 {[%clk 00:03:23]} {[%emt 00:01:07]}
25. Bd3 {[%clk 00:18:21]} {[%emt 00:01:40]} Kg7 {[%clk 00:03:45]} {[%emt
00:00:08]} 26. Qe2 {[%clk 00:14:25]} {[%emt 00:04:26]} Qg6 {[%clk 00:02:08]}
{[%emt 00:02:07]} 27. Bxf5 {[%clk 00:14:43]} {[%emt 00:00:12]} Rxf5 {[%clk
00:02:34]} {[%emt 00:00:04]} 28. Rh3 {[%clk 00:12:35]} {[%emt 00:02:37]} Qf7
{[%clk 00:01:45]} {[%emt 00:01:20]} 29. Ne4 {[%clk 00:12:04]} {[%emt 00:01:00]}
Rg8 {[%clk 00:01:24]} {[%emt 00:00:52]} 30. Ng3 {[%clk 00:11:16]} {[%emt
00:01:17]} Bf4 {[%clk 00:01:47]} {[%emt 00:00:08]} 31. Nxf5+ {[%clk 00:10:31]}
{[%emt 00:01:15]} Qxf5 {[%clk 00:02:14]} {[%emt 00:00:03]} 32. Nh4 {[%clk
00:09:44]} {[%emt 00:01:16]} Qg5 {[%clk 00:00:33]} {[%emt 00:02:12]} 33. Qe4
{[%clk 00:08:47]} {[%emt 00:01:26]} Rf8 {[%clk 00:00:44]} {[%emt 00:00:19]} 34.
Rcc3 {[%clk 00:08:37]} {[%emt 00:00:41]} Kf7 {[%clk 00:00:33]} {[%emt
00:00:42]} 35. Nf3 {[%clk 00:07:28]} {[%emt 00:01:38]} Qg4 {[%clk 00:00:43]}
{[%emt 00:00:20]} 36. Qh7+ {[%clk 00:06:28]} {[%emt 00:01:29]} Ke8 {[%clk
00:01:06]} {[%emt 00:00:07]} 37. Rh4 {[%clk 00:05:22]} {[%emt 00:01:36]} Qd7
{[%clk 00:00:33]} {[%emt 00:01:04]} 38. Qg6+ {[%clk 00:05:06]} {[%emt
00:00:45]} Qf7 {[%clk 00:01:00]} {[%emt 00:00:04]} 39. Qxf7+ {[%clk 00:04:58]}
{[%emt 00:00:38]} Rxf7 {[%clk 00:01:27]} {[%emt 00:00:04]} 40. g3 {[%clk
00:05:01]} {[%emt 00:00:25]} 1-0

[Event "European Women's Chess Championship (1-48)"]
[Site "Batumi, Georgia"]
[Date "2026.05.25"]
[Round "1.45"]
[White "Arakhamia-Grant, Ketevan"]
[Black "Tsirulnik, Maritsa"]
[Result "0-1"]
[TimeControl "90min/ 40moves+ 30min+ 30-sec increment from move 1"]
[WhiteTitle "-"]
[BlackTitle "-"]
[WhiteFideId "13600168"]
[BlackFideId "14118688"]
[WhiteElo "2306"]
[BlackElo "2028"]

1. e4 {[%clk 01:30:58]} {[%emt 00:00:02]} c5 {[%clk 01:30:54]} {[%emt
00:00:07]} 2. Nf3 {[%clk 01:31:22]} {[%emt 00:00:06]} e6 {[%clk 01:31:15]}
{[%emt 00:00:09]} 3. d4 {[%clk 01:31:36]} {[%emt 00:00:16]} cxd4 {[%clk
01:31:38]} {[%emt 00:00:07]} 4. Nxd4 {[%clk 01:32:02]} {[%emt 00:00:04]} a6
{[%clk 01:31:45]} {[%emt 00:00:24]} 5. Bd3 {[%clk 01:31:56]} {[%emt 00:00:35]}
Nf6 {[%clk 01:31:37]} {[%emt 00:00:38]} 6. Qe2 {[%clk 01:27:34]} {[%emt
00:04:51]} d6 {[%clk 01:26:31]} {[%emt 00:05:36]} 7. O-O {[%clk 01:26:05]}
{[%emt 00:01:59]} Be7 {[%clk 01:23:44]} {[%emt 00:03:17]} 8. Nc3 {[%clk
01:20:44]} {[%emt 00:05:51]} Qc7 {[%clk 01:15:07]} {[%emt 00:09:07]} 9. Kh1
{[%clk 01:19:23]} {[%emt 00:01:51]} Nc6 {[%clk 01:13:43]} {[%emt 00:01:54]} 10.
Nxc6 {[%clk 01:18:17]} {[%emt 00:01:36]} bxc6 {[%clk 01:13:22]} {[%emt
00:00:51]} 11. f4 {[%clk 01:18:21]} {[%emt 00:00:26]} Nd7 {[%clk 01:10:03]}
{[%emt 00:03:48]} 12. Be3 {[%clk 01:09:36]} {[%emt 00:09:16]} c5 {[%clk
01:08:00]} {[%emt 00:02:33]} 13. Rae1 {[%clk 01:07:00]} {[%emt 00:03:06]} O-O
{[%clk 01:03:03]} {[%emt 00:05:27]} 14. b3 {[%clk 00:49:38]} {[%emt 00:17:53]}
Bb7 {[%clk 01:00:50]} {[%emt 00:02:42]} 15. Nd1 {[%clk 00:49:29]} {[%emt
00:00:40]} Bf6 {[%clk 00:55:30]} {[%emt 00:05:49]} 16. Nf2 {[%clk 00:48:14]}
{[%emt 00:01:45]} Bc3 {[%clk 00:53:53]} {[%emt 00:02:07]} 17. Bd2 {[%clk
00:39:58]} {[%emt 00:08:46]} Bxd2 {[%clk 00:53:00]} {[%emt 00:01:23]} 18. Qxd2
{[%clk 00:40:23]} {[%emt 00:00:06]} a5 {[%clk 00:48:02]} {[%emt 00:05:27]} 19.
Ng4 {[%clk 00:37:43]} {[%emt 00:03:10]} d5 {[%clk 00:43:57]} {[%emt 00:04:36]}
20. e5 {[%clk 00:34:51]} {[%emt 00:03:22]} c4 {[%clk 00:38:08]} {[%emt
00:06:19]} 21. f5 {[%clk 00:29:11]} {[%emt 00:06:09]} f6 {[%clk 00:30:48]}
{[%emt 00:07:51]} 22. fxe6 {[%clk 00:18:17]} {[%emt 00:11:23]} Nxe5 {[%clk
00:30:54]} {[%emt 00:00:24]} 23. Bf5 {[%clk 00:18:26]} {[%emt 00:00:21]} g6
{[%clk 00:26:03]} {[%emt 00:05:21]} 24. Nh6+ {[%clk 00:18:12]} {[%emt
00:00:44]} Kg7 {[%clk 00:24:23]} {[%emt 00:02:10]} 25. Bh3 {[%clk 00:18:21]}
{[%emt 00:00:21]} Rae8 {[%clk 00:21:57]} {[%emt 00:02:57]} 26. Qf4 {[%clk
00:14:49]} {[%emt 00:04:02]} Qe7 {[%clk 00:13:15]} {[%emt 00:09:12]} 27. Ng4
{[%clk 00:14:28]} {[%emt 00:00:50]} Nxg4 {[%clk 00:13:31]} {[%emt 00:00:14]} 28.
Bxg4 {[%clk 00:14:42]} {[%emt 00:00:17]} f5 {[%clk 00:09:31]} {[%emt 00:04:30]}
29. Bf3 {[%clk 00:15:05]} {[%emt 00:00:06]} cxb3 {[%clk 00:07:26]} {[%emt
00:02:35]} 30. cxb3 {[%clk 00:14:26]} {[%emt 00:01:09]} Rf6 {[%clk 00:07:28]}
{[%emt 00:00:28]} 31. Qd4 {[%clk 00:13:19]} {[%emt 00:01:38]} Qb4 {[%clk
00:07:09]} {[%emt 00:00:49]} 32. Qa1 {[%clk 00:08:46]} {[%emt 00:05:03]} Qd6
{[%clk 00:05:54]} {[%emt 00:01:44]} 33. g4 {[%clk 00:08:05]} {[%emt 00:01:11]}
fxg4 {[%clk 00:05:09]} {[%emt 00:01:15]} 34. Bg2 {[%clk 00:06:47]} {[%emt
00:01:48]} Rexe6 {[%clk 00:05:17]} {[%emt 00:00:22]} 35. Rxe6 {[%clk 00:05:57]}
{[%emt 00:01:20]} Qxe6 {[%clk 00:05:41]} {[%emt 00:00:06]} 36. Qd4 {[%clk
00:03:33]} {[%emt 00:02:54]} Bc6 {[%clk 00:04:14]} {[%emt 00:01:58]} 37. Rc1
{[%clk 00:02:30]} {[%emt 00:01:33]} Qd7 {[%clk 00:02:21]} {[%emt 00:02:22]} 38.
Rf1 {[%clk 00:00:41]} {[%emt 00:02:20]} Qe6 {[%clk 00:02:12]} {[%emt 00:00:38]}
39. Rc1 {[%clk 00:01:05]} {[%emt 00:00:06]} h5 {[%clk 00:01:38]} {[%emt
00:01:05]} 40. Qa7+ {[%clk 00:01:00]} {[%emt 00:00:35]} Qf7 {[%clk 00:00:47]}
{[%emt 00:01:20]} 41. Qxa5 {[%clk 00:27:26]} {[%emt 00:04:04]} h4 {[%clk
00:30:13]} {[%emt 00:01:04]} 42. Kg1 {[%clk 00:26:12]} {[%emt 00:01:44]} h3
{[%clk 00:29:27]} {[%emt 00:01:16]} 43. Bf1 {[%clk 00:14:07]} {[%emt 00:12:36]}
Qe6 {[%clk 00:23:24]} {[%emt 00:06:32]} 44. Qa7+ {[%clk 00:10:47]} {[%emt
00:03:50]} Kh6 {[%clk 00:22:59]} {[%emt 00:00:55]} 45. Qd4 {[%clk 00:10:53]}
{[%emt 00:00:24]} Kh5 {[%clk 00:13:55]} {[%emt 00:09:35]} 46. Bd3 {[%clk
00:08:10]} {[%emt 00:03:13]} Qd6 {[%clk 00:11:40]} {[%emt 00:02:45]} 47. Be2
{[%clk 00:06:20]} {[%emt 00:02:20]} Bd7 {[%clk 00:11:20]} {[%emt 00:00:50]} 48.
Rc5 {[%clk 00:03:57]} {[%emt 00:02:53]} g5 {[%clk 00:06:44]} {[%emt 00:05:06]}
49. Rxd5 {[%clk 00:03:17]} {[%emt 00:01:09]} Qe6 {[%clk 00:04:03]} {[%emt
00:03:12]} 50. Re5 {[%clk 00:02:56]} {[%emt 00:00:51]} Qc6 {[%clk 00:02:56]}
{[%emt 00:01:36]} 51. Qd5 {[%clk 00:00:35]} {[%emt 00:02:52]} Qc1+ {[%clk
00:02:42]} {[%emt 00:00:43]} 52. Qd1 {[%clk 00:00:33]} {[%emt 00:00:33]} Qf4
{[%clk 00:02:39]} {[%emt 00:00:32]} 53. Qe1 {[%clk 00:00:33]} {[%emt 00:00:31]}
Qd4+ {[%clk 00:02:51]} {[%emt 00:00:17]} 0-1